bitfinex/quotes_BTCUSD_20240811
["timestamp","ask_amount","ask_price","bid_price","bid_amount"]
[1723395271224,1.71108115,60269.0,60265.0,0.00913]
[1723395271442,2.99018115,60269.0,60265.0,0.00913]
[1723395271657,2.91705415,60269.0,60265.0,0.00913]
[1723395271868,2.8518494,60269.0,60265.0,0.00913]
[1723395272063,2.89704,60269.0,60265.0,0.00913]
[1723395272497,2.664749,60269.0,60265.0,0.00913]
[1723395272652,2.654749,60269.0,60268.0,0.06933]
[1723395272869,2.668749,60269.0,60268.0,0.06933]
[1723395273271,2.660749,60269.0,60268.0,0.06933]
[1723395273471,2.668749,60269.0,60268.0,0.06933]
[1723395273672,2.68267809,60269.0,60268.0,0.06933]
[1723395274074,2.66867809,60269.0,60268.0,0.06933]
[1723395274997,2.65467809,60269.0,60268.0,0.06933]
[1723395275418,2.66867809,60269.0,60268.0,0.06933]
[1723395275741,2.6305584,60269.0,60268.0,0.06933]
[1723395275944,2.67573645,60269.0,60268.0,0.06933]
[1723395276926,2.66873645,60269.0,60268.0,0.06933]
[1723395277129,2.67573645,60269.0,60268.0,0.06933]
[1723395277330,2.66173645,60269.0,60268.0,0.06933]
[1723395277544,2.65473645,60269.0,60268.0,0.06933]
[1723395278730,2.66873645,60269.0,60268.0,0.06933]
[1723395278947,2.67373645,60269.0,60268.0,0.06933]
[1723395279379,3.5397613,60269.0,60268.0,0.06933]
[1723395279605,3.5397613,60269.0,60268.0,0.00913]
[1723395279606,3.5537613,60269.0,60268.0,0.00913]
[1723395279765,3.62650347,60269.0,60268.0,0.00913]
[1723395279968,3.61650347,60269.0,60268.0,0.00913]
[1723395280164,3.92079447,60269.0,60268.0,0.00913]
[1723395280494,4.00441502,60269.0,60268.0,0.00913]
[1723395281003,3.77441502,60269.0,60268.0,0.00913]
[1723395281418,3.81677443,60269.0,60268.0,0.00913]
[1723395282878,3.89500994,60269.0,60268.0,0.00913]
[1723395283483,3.89504853,60269.0,60268.0,0.00913]
[1723395284280,3.92504853,60269.0,60268.0,0.00913]
[1723395284508,3.82068912,60269.0,60268.0,0.00913]
[1723395284780,3.86303911,60269.0,60268.0,0.00913]
[1723395286132,3.89131653,60269.0,60268.0,0.00913]
[1723395286334,4.06369761,60269.0,60268.0,0.00913]
[1723395287835,4.06357581,60269.0,60268.0,0.00913]
[1723395288726,4.29586681,60269.0,60268.0,1e-06]
[1723395289650,4.27686681,60269.0,60268.0,1e-06]
[1723395289827,4.32686681,60269.0,60268.0,1e-06]
[1723395290006,4.34886681,60269.0,60268.0,1e-06]
[1723395290210,4.34086681,60269.0,60268.0,1e-06]
[1723395290654,4.45637475,60269.0,60268.0,1e-06]
[1723395290879,4.35486681,60269.0,60268.0,1e-06]
[1723395291087,4.34086681,60269.0,60268.0,1e-06]
[1723395291465,1.307666,60266.0,60265.0,0.00913]
[1723395291761,3.7365269,60266.0,60265.0,0.00913]
[1723395292742,3.7365269,60266.0,60262.0,0.000913]
[1723395292743,1.307732,60263.0,60262.0,0.000913]
[1723395292948,2.87889267,60263.0,60262.0,0.000913]
[1723395293158,0.843127,60261.0,60253.0,0.0628]
[1723395293334,3.78663209,60261.0,60253.0,0.0628]
[1723395293887,3.78788235,60261.0,60253.0,0.0628]
[1723395294280,3.78793039,60261.0,60253.0,0.0628]
[1723395294780,3.79693039,60261.0,60253.0,0.0628]
[1723395294978,3.84693039,60261.0,60253.0,0.0628]
[1723395295753,3.86093039,60261.0,60253.0,0.0628]
[1723395296179,3.85793039,60261.0,60253.0,0.0628]
[1723395296383,3.86793039,60261.0,60253.0,0.0628]
[1723395296585,3.88193039,60261.0,60253.0,0.0628]
[1723395296763,3.87193039,60261.0,60253.0,0.0628]
[1723395297341,3.88493039,60261.0,60253.0,0.0628]
[1723395298387,3.88493039,60261.0,60252.0,0.00055536]
[1723395298596,3.95930151,60261.0,60252.0,0.00055536]
[1723395298797,3.93452626,60261.0,60252.0,0.00055536]
[1723395299007,3.93452626,60261.0,60258.0,0.0753]
[1723395299008,2.91220426,60261.0,60258.0,0.0753]
[1723395299222,2.91220426,60261.0,60260.0,0.07193]
[1723395299223,3.69260839,60261.0,60260.0,0.07193]
[1723395299517,2.88260839,60261.0,60260.0,0.07193]
[1723395299723,3.69260839,60261.0,60260.0,0.07193]
[1723395300100,2.88260839,60261.0,60260.0,0.07193]
[1723395300314,2.85560839,60261.0,60260.0,0.07193]
[1723395300491,2.5053123,60261.0,60260.0,0.14723]
[1723395300710,2.54044321,60261.0,60260.0,0.14723]
[1723395300870,3.61076521,60261.0,60260.0,0.14723]
[1723395301356,3.63076521,60261.0,60260.0,0.14723]
[1723395301534,3.67315169,60261.0,60260.0,0.14723]
[1723395301767,3.48315169,60261.0,60260.0,0.14723]
[1723395301942,3.52015169,60261.0,60260.0,0.14723]
[1723395302463,3.50615169,60261.0,60260.0,0.14723]
[1723395302665,3.53015169,60261.0,60260.0,0.14723]
[1723395302870,3.64015169,60261.0,60260.0,0.14723]
[1723395303045,3.63015169,60261.0,60260.0,0.14723]
[1723395303451,3.63315169,60261.0,60260.0,0.14723]
[1723395303628,3.63015169,60261.0,60260.0,0.14723]
[1723395303829,3.6168246,60261.0,60260.0,0.14723]
[1723395304060,2.8268246,60261.0,60260.0,0.14723]
[1723395304301,2.8348246,60261.0,60260.0,0.14723]
[1723395304473,2.8268246,60261.0,60260.0,0.14723]
[1723395304879,2.8338246,60261.0,60260.0,0.14723]
[1723395305077,3.57080398,60261.0,60260.0,0.14723]
[1723395305235,2.84080398,60261.0,60260.0,0.14723]
[1723395305441,3.41848198,60261.0,60260.0,0.00913]
[1723395305669,4.08287155,60261.0,60260.0,0.00913]
[1723395305875,3.94327568,60261.0,60260.0,0.00913]
[1723395306096,3.8534971,60261.0,60260.0,0.00913]
[1723395306269,3.8674971,60261.0,60260.0,0.00913]
[1723395306481,3.89236608,60261.0,60260.0,0.00913]
[1723395306682,3.91715646,60261.0,60260.0,0.00913]
[1723395307084,3.80134061,60261.0,60260.0,0.00913]
[1723395307408,3.79334061,60261.0,60260.0,0.00913]
[1723395307615,3.89647558,60261.0,60260.0,0.00913]
[1723395307835,3.79934061,60261.0,60260.0,0.00913]
[1723395308040,3.79334061,60261.0,60260.0,0.00913]
[1723395308254,3.91748766,60261.0,60260.0,0.00913]
[1723395308465,3.91148766,60261.0,60260.0,0.00913]
[1723395308662,3.90348766,60261.0,60260.0,0.00913]
[1723395308865,3.91748766,60261.0,60260.0,0.00913]
[1723395309008,3.96849031,60261.0,60260.0,0.00913]
[1723395309480,4.05805459,60261.0,60260.0,0.00913]
[1723395309675,3.90765386,60261.0,60260.0,0.00913]
[1723395309904,3.98775386,60261.0,60260.0,0.00913]
[1723395310332,3.87876143,60261.0,60260.0,0.00913]
[1723395310598,3.98811411,60261.0,60260.0,0.00913]
[1723395311987,3.65569211,60261.0,60260.0,0.15643]
[1723395312187,2.96222783,60261.0,60260.0,0.15643]
[1723395312604,3.73222783,60261.0,60260.0,0.00913]
[1723395312805,3.69222783,60261.0,60260.0,0.00913]
[1723395313021,3.10941748,60261.0,60260.0,0.00913]
[1723395313239,3.08646873,60261.0,60260.0,0.00913]
[1723395313447,2.94222783,60261.0,60260.0,0.15643]
[1723395313651,3.06646873,60261.0,60260.0,0.15643]
[1723395313864,3.65349636,60261.0,60260.0,0.15643]
[1723395314078,3.65349556,60261.0,60260.0,0.15643]
[1723395314499,3.0677372,60261.0,60260.0,0.15643]
[1723395314714,2.9434963,60261.0,60260.0,0.15643]
[1723395314918,3.6134963,60261.0,60260.0,0.15643]
[1723395315127,3.7377372,60261.0,60260.0,0.15643]
[1723395315302,3.0677372,60261.0,60260.0,0.15643]
[1723395315507,3.13489175,60261.0,60260.0,0.15643]
[1723395315710,3.06781924,60261.0,60260.0,0.15643]
[1723395316093,3.0678546,60261.0,60260.0,0.15643]
[1723395316291,2.9528989,60261.0,60260.0,0.15643]
[1723395316492,3.00814324,60261.0,60260.0,0.15643]
[1723395316768,1.69118762,60261.0,60260.0,0.15643]
[1723395316968,1.30915634,60261.0,60260.0,0.15643]
[1723395317209,1.10295494,60261.0,60260.0,0.15643]
[1723395317465,0.98975613,60261.0,60260.0,0.15643]
[1723395317675,1.08844199,60261.0,60260.0,0.15643]
[1723395317879,1.07744199,60261.0,60260.0,0.15643]
[1723395318053,1.08844199,60261.0,60260.0,0.15643]
[1723395318208,1.18844199,60261.0,60260.0,0.15643]
[1723395318414,1.17744199,60261.0,60260.0,0.15643]
[1723395318598,1.11271388,60261.0,60260.0,0.15643]
[1723395319010,1.12671388,60261.0,60260.0,0.15643]
[1723395319590,1.04925348,60261.0,60260.0,0.15643]
[1723395319994,1.06025348,60261.0,60260.0,0.15643]
[1723395320339,1.04925348,60261.0,60260.0,0.15643]
[1723395320670,1.04725348,60261.0,60260.0,0.15643]
[1723395320872,1.05699028,60261.0,60260.0,0.15643]
[1723395321048,1.05799028,60261.0,60260.0,0.15643]
[1723395322249,1.04699028,60261.0,60260.0,0.15643]
[1723395322488,1.05582028,60261.0,60260.0,0.15643]
[1723395323723,1.05582028,60261.0,60260.0,0.15843]
[1723395324439,0.17901442,60261.0,60260.0,0.15843]
[1723395324620,0.13331076,60261.0,60260.0,0.15843]
[1723395325030,0.36563276,60261.0,60260.0,0.15843]
[1723395325813,0.59795476,60261.0,60260.0,0.15843]
[1723395326023,0.36563276,60261.0,60260.0,0.15843]
[1723395327398,0.01714976,60261.0,60260.0,0.15843]
[1723395327829,0.13331076,60261.0,60260.0,0.15843]
[1723395328458,0.35763276,60261.0,60260.0,0.15643]
[1723395328943,0.35863276,60261.0,60260.0,0.15843]
[1723395329501,0.35963276,60261.0,60260.0,0.15843]
[1723395330617,0.01114976,60261.0,60260.0,0.15843]
[1723395330953,0.01114976,60261.0,60260.0,0.274593]
[1723395334017,0.01114976,60261.0,60260.0,0.15843]
[1723395334233,0.12731076,60261.0,60260.0,0.15843]
[1723395338954,0.01114976,60261.0,60260.0,0.274593]
[1723395339895,0.01114976,60261.0,60260.0,0.15843]
[1723395340966,0.01114976,60261.0,60260.0,0.274593]
[1723395341176,0.00283,60261.0,60260.0,0.971571]
[1723395341399,0.00283,60261.0,60260.0,1.10936778]
[1723395342022,0.00183,60261.0,60260.0,1.11915374]
[1723395342206,0.00183,60261.0,60260.0,1.11714528]
[1723395342207,0.00083,60261.0,60260.0,1.11714528]
[1723395342448,0.00383,60261.0,60260.0,1.12014528]
[1723395343203,0.00183,60261.0,60260.0,1.12014528]
[1723395343401,0.00183,60261.0,60260.0,1.2839602]
[1723395343734,0.00083,60261.0,60260.0,1.2809602]
[1723395344297,0.00183,60261.0,60260.0,1.2929602]
[1723395344667,0.00183,60261.0,60260.0,1.2949602]
[1723395345178,0.00183,60261.0,60260.0,1.2929602]
[1723395345344,0.00283,60261.0,60260.0,1.2959602]
[1723395345746,0.00283,60261.0,60260.0,1.29595492]
[1723395346365,0.00283,60261.0,60260.0,1.29595752]
[1723395346537,0.00283,60261.0,60260.0,0.65770464]
[1723395347251,0.00283,60261.0,60260.0,0.42537864]
[1723395347688,0.00283,60261.0,60260.0,0.287593]
[1723395347689,0.01079029,60261.0,60260.0,0.287593]
[1723395348194,0.01079029,60261.0,60260.0,0.4253917]
[1723395348655,0.00283,60261.0,60260.0,0.42539255]
[1723395348884,0.01079016,60261.0,60260.0,0.42539255]
[1723395351143,0.01079016,60261.0,60260.0,0.42539256]
[1723395354265,0.12695116,60261.0,60260.0,0.30922956]
[1723395354473,0.01079016,60261.0,60260.0,0.30922956]
[1723395354949,0.01079016,60261.0,60260.0,0.30922906]
[1723395355354,0.01079016,60261.0,60260.0,0.42539206]
[1723395355691,0.01079016,60261.0,60260.0,0.65771806]
[1723395355891,0.00283,60261.0,60260.0,0.65771806]
[1723395356345,0.00283,60261.0,60260.0,0.42539206]
[1723395356544,0.01078791,60261.0,60260.0,0.42539206]
[1723395357919,0.01078791,60261.0,60260.0,0.65771806]
[1723395358321,0.01078791,60261.0,60260.0,0.6577154]
[1723395358808,0.118991,60261.0,60260.0,0.3092264]
[1723395359004,0.351313,60261.0,60260.0,0.3092356]
[1723395359180,0.35927066,60261.0,60260.0,0.3092356]
[1723395359381,0.59159266,60261.0,60260.0,0.3092356]
[1723395359525,0.40475532,60261.0,60260.0,0.17143]
[1723395359943,0.40475532,60261.0,60260.0,0.16843]
[1723395359944,0.35827066,60261.0,60260.0,0.16843]
[1723395360147,0.40380858,60261.0,60260.0,0.16843]
[1723395360353,0.40380858,60261.0,60260.0,0.16943]
[1723395360777,1.0923675,60261.0,60260.0,0.02113]
[1723395361002,1.1913675,60261.0,60260.0,0.00913]
[1723395361206,1.25568478,60261.0,60260.0,0.02013]
[1723395361403,1.69578689,60261.0,60260.0,0.02013]
[1723395361614,1.69578689,60261.0,60260.0,0.01913]
[1723395361615,1.70605961,60261.0,60260.0,0.01913]
[1723395361812,1.62985747,60261.0,60260.0,0.01913]
[1723395362015,1.76583898,60261.0,60260.0,0.00913]
[1723395362246,1.77983898,60261.0,60260.0,0.00913]
[1723395362453,1.74245972,60261.0,60260.0,0.00913]
[1723395362920,1.86778055,60261.0,60260.0,0.00913]
[1723395363220,1.80091224,60261.0,60260.0,0.00913]
[1723395364458,1.79785546,60261.0,60260.0,0.01013]
[1723395364656,1.79785562,60261.0,60260.0,0.01013]
[1723395364813,1.80085562,60261.0,60260.0,0.00913]
[1723395365021,1.74249904,60261.0,60260.0,0.00913]
[1723395365220,1.72849904,60261.0,60260.0,0.00913]
[1723395365620,1.74249904,60261.0,60260.0,0.00913]
[1723395365845,1.73749904,60261.0,60260.0,0.00913]
[1723395366246,1.74349904,60261.0,60260.0,0.01013]
[1723395367616,1.73749904,60261.0,60260.0,0.00913]
[1723395367795,1.69665158,60261.0,60260.0,0.00913]
[1723395367952,1.74250233,60261.0,60260.0,0.00913]
[1723395368334,1.69665158,60261.0,60260.0,0.00913]
[1723395368543,1.74249367,60261.0,60260.0,0.00913]
[1723395368741,1.42707167,60261.0,60260.0,0.00913]
[1723395368946,1.35087167,60261.0,60260.0,0.00913]
[1723395369150,1.15057167,60261.0,60260.0,0.00913]
[1723395369984,0.65443475,60261.0,60260.0,0.00913]
[1723395370192,0.42211275,60261.0,60260.0,0.08953]
[1723395370391,0.37627066,60261.0,60260.0,0.15603]
[1723395370594,0.37127066,60261.0,60260.0,0.15603]
[1723395370795,0.12994866,60261.0,60260.0,0.15603]
[1723395371279,0.37127066,60261.0,60260.0,0.15603]
[1723395371820,0.35727066,60261.0,60260.0,0.15603]
[1723395372426,0.35727066,60261.0,60260.0,0.15803]
[1723395372627,0.35827066,60261.0,60260.0,0.16903]
[1723395374011,0.12594866,60261.0,60260.0,0.16903]
[1723395374185,0.12594866,60261.0,60260.0,0.16703]
[1723395374366,0.12594866,60261.0,60260.0,0.16903]
[1723395374567,0.35827066,60261.0,60260.0,0.16903]
[1723395375359,0.12594866,60261.0,60260.0,0.16903]
[1723395375556,0.12594866,60261.0,60260.0,0.91365992]
[1723395375557,0.00978766,60261.0,60260.0,0.91365992]
[1723395375768,0.00183,60261.0,60260.0,0.91365992]
[1723395375968,0.00183,60261.0,60260.0,0.44900792]
[1723395376550,0.00978016,60261.0,60260.0,0.68133392]
[1723395376754,0.00183,60261.0,60260.0,0.91365992]
[1723395377235,0.00183,60261.0,60260.0,0.68133392]
[1723395378593,0.00183,60261.0,60260.0,0.91365992]
[1723395379439,0.00183,60261.0,60260.0,1.0514591]
[1723395379641,0.00183,60261.0,60260.0,1.0514576]
[1723395379976,0.00183,60261.0,60260.0,0.91365992]
[1723395380147,0.00183,60261.0,60260.0,0.68133392]
[1723395380357,0.00183,60261.0,60260.0,0.67933392]
[1723395380687,0.00083,60261.0,60260.0,0.67033392]
[1723395380857,0.00183,60261.0,60260.0,0.68033392]
[1723395381057,0.00083,60261.0,60260.0,0.66833392]
[1723395381395,0.00283,60261.0,60260.0,0.68833392]
[1723395381718,0.00283,60261.0,60260.0,0.59380829]
[1723395381919,0.00283,60261.0,60260.0,0.68833392]
[1723395382180,0.01078362,60261.0,60260.0,0.82613331]
[1723395382379,0.00283,60261.0,60260.0,0.82613331]
[1723395383142,0.00283,60261.0,60260.0,0.31382939]
[1723395383325,0.118991,60261.0,60260.0,0.31382939]
[1723395383557,0.01078264,60261.0,60260.0,0.17603]
[1723395388050,0.12694364,60261.0,60260.0,0.17603]
[1723395388216,0.35926564,60261.0,60260.0,0.17603]
[1723395388401,0.12694364,60261.0,60260.0,0.17603]
[1723395389850,0.01078264,60261.0,60260.0,0.17603]
[1723395390857,0.01078264,60261.0,60260.0,0.292193]
[1723395391430,0.01078264,60261.0,60260.0,0.17603]
[1723395391644,0.00263027,60261.0,60260.0,0.17603]
[1723395391824,0.01058579,60261.0,60260.0,0.17603]
[1723395394118,0.01058579,60261.0,60260.0,0.292193]
[1723395394329,0.01058579,60261.0,60260.0,0.524519]
[1723395394728,0.00263027,60261.0,60260.0,0.524519]
[1723395395425,0.00263027,60261.0,60260.0,0.66232115]
[1723395395619,0.00263027,60261.0,60260.0,0.42999515]
[1723395396006,0.0105857,60261.0,60260.0,0.42999515]
[1723395397151,0.0105857,60261.0,60260.0,0.89464715]
[1723395397584,0.00263027,60261.0,60260.0,0.89464715]
[1723395399812,0.00263027,60261.0,60260.0,0.756845]
[1723395400014,0.00263027,60261.0,60260.0,0.8946429]
[1723395400478,0.00263027,60261.0,60260.0,0.89464297]
[1723395401877,0.00163027,60261.0,60260.0,0.88864297]
[1723395402051,0.00063027,60261.0,60260.0,0.87464297]
[1723395402583,0.00163027,60261.0,60260.0,0.88864297]
[1723395403142,0.00263027,60261.0,60260.0,0.89764297]
[1723395403542,0.00263027,60261.0,60260.0,0.89763893]
[1723395407061,0.00263027,60261.0,60260.0,0.89763639]
[1723395410875,0.00263027,60261.0,60260.0,0.89763755]
[1723395411359,0.00263027,60261.0,60260.0,0.8976368]
[1723395412188,0.00263027,60261.0,60260.0,0.1699218]
[1723395412540,0.01058785,60261.0,60260.0,0.2860848]
[1723395412745,0.01058785,60261.0,60260.0,0.1699218]
[1723395413042,0.01058785,60261.0,60260.0,0.2860848]
[1723395414433,0.01058785,60261.0,60260.0,0.28609737]
[1723395415146,0.01058785,60261.0,60260.0,0.16993437]
[1723395416821,0.01058785,60261.0,60260.0,0.89234937]
[1723395417037,0.01058785,60261.0,60260.0,0.94185728]
[1723395417177,0.01058785,60261.0,60260.0,0.89234937]
[1723395417178,0.00263027,60261.0,60260.0,0.89234937]
[1723395417381,0.00263027,60261.0,60260.0,0.96661124]
[1723395417583,0.00263027,60261.0,60260.0,0.96660477]
[1723395417824,0.00263027,60261.0,60260.0,0.96659211]
[1723395420088,0.00263027,60261.0,60260.0,1.55080363]
[1723395420257,0.00263027,60261.0,60260.0,1.65280363]
[1723395420438,0.00263027,60261.0,60260.0,1.88273543]
[1723395420650,0.00263027,60261.0,60260.0,2.05655628]
[1723395420855,0.00263027,60261.0,60260.0,1.51501192]
[1723395421150,0.00263027,60261.0,60260.0,2.20462046]
[1723395421555,0.00263027,60261.0,60260.0,2.05609652]
[1723395422262,0.00263027,60261.0,60260.0,1.88269654]
[1723395422466,0.00263027,60261.0,60260.0,2.20462046]
[1723395422665,0.00263027,60261.0,60260.0,2.03122048]
[1723395422842,0.00263027,60261.0,60260.0,2.05609652]
[1723395423046,0.00263027,60261.0,60260.0,2.20462046]
[1723395423279,0.00263027,60261.0,60260.0,2.20455826]
[1723395423452,0.00263027,60261.0,60260.0,2.03115828]
[1723395423655,0.00263027,60261.0,60260.0,2.05609652]
[1723395424055,0.00263027,60261.0,60260.0,2.05586216]
[1723395424489,0.00263027,60261.0,60260.0,2.90818816]
[1723395424687,0.000831,60262.0,60261.0,1.309771]
[1723395424883,0.000831,60262.0,60261.0,2.4335246]
[1723395425059,0.000831,60262.0,60261.0,2.42014559]
[1723395425279,0.000831,60262.0,60261.0,2.42012503]
[1723395425585,0.000831,60262.0,60261.0,2.3590156]
[1723395425928,0.001831,60262.0,60261.0,2.54702698]
[1723395426162,0.001831,60262.0,60261.0,2.4999156]
[1723395426329,0.001831,60262.0,60261.0,2.56103313]
[1723395426484,0.001831,60262.0,60261.0,2.77963838]
[1723395426692,0.001831,60262.0,60261.0,2.71852085]
[1723395426898,0.001831,60262.0,60261.0,2.4999156]
[1723395427470,0.001831,60262.0,60261.0,2.13127037]
[1723395427633,0.001831,60262.0,60261.0,2.50100119]
[1723395428050,0.001831,60262.0,60261.0,2.71960644]
[1723395428448,0.00123219,60262.0,60261.0,2.71960644]
[1723395428648,0.00123219,60262.0,60261.0,2.50100119]
[1723395429844,0.08184646,60281.0,60270.0,1.415396]
[1723395430196,0.49107874,60291.0,60270.0,2.54475118]
[1723395430480,0.49107874,60291.0,60270.0,2.80003918]
[1723395431016,0.49107874,60291.0,60270.0,3.41477466]
[1723395431215,0.49107874,60291.0,60270.0,3.61917951]
[1723395431633,0.49107874,60291.0,60270.0,3.17709639]
[1723395431841,0.49107874,60291.0,60270.0,3.12806751]
[1723395432048,0.08184646,60286.0,60270.0,2.74141107]
[1723395432248,0.08184646,60286.0,60270.0,2.58182087]
[1723395432450,0.08184646,60286.0,60270.0,2.69091781]
[1723395432654,0.003831,60271.0,60270.0,2.56782087]
[1723395432857,0.003831,60271.0,60270.0,2.56783386]
[1723395433083,0.003831,60271.0,60270.0,2.6909308]
[1723395433286,0.003831,60271.0,60270.0,2.56783386]
[1723395433486,0.003831,60271.0,60270.0,2.66626533]
[1723395433487,0.000831,60271.0,60270.0,2.66626533]
[1723395433691,0.000831,60271.0,60270.0,2.65564778]
[1723395434000,0.000831,60271.0,60270.0,2.69426533]
[1723395434239,0.000831,60271.0,60270.0,2.68026533]
[1723395434432,0.000831,60271.0,60270.0,2.69426533]
[1723395434679,0.000831,60271.0,60270.0,2.4394716]
[1723395434831,0.000831,60271.0,60270.0,2.66950704]
[1723395435621,0.000831,60271.0,60270.0,2.69416843]
[1723395435853,0.000831,60271.0,60270.0,2.59573696]
[1723395437700,0.000831,60271.0,60270.0,2.46960892]
[1723395438009,0.000831,60271.0,60270.0,2.04280152]
[1723395439009,0.000831,60271.0,60270.0,2.02080152]
[1723395440708,0.000831,60271.0,60270.0,2.13080152]
[1723395440858,0.000831,60271.0,60270.0,2.12080152]
[1723395441057,0.000831,60271.0,60270.0,2.14080152]
[1723395441645,0.000831,60271.0,60270.0,2.14081689]
[1723395441862,0.000831,60271.0,60270.0,1.50804089]
[1723395442063,0.000831,60271.0,60270.0,1.50805076]
[1723395442692,0.000831,60271.0,60270.0,1.75033876]
[1723395442869,0.000831,60271.0,60270.0,1.73633876]
[1723395443093,0.000831,60271.0,60270.0,1.75033876]
[1723395443293,0.000831,60271.0,60270.0,1.50805076]
[1723395443792,0.000831,60271.0,60270.0,1.49405076]
[1723395443987,0.000831,60271.0,60270.0,1.50805076]
[1723395444958,0.000831,60271.0,60270.0,1.27576276]
[1723395445242,0.51260346,60271.0,60270.0,0.52576]
[1723395445463,0.80588746,60271.0,60270.0,0.51176]
[1723395445720,0.81380614,60271.0,60270.0,0.51176]
[1723395445904,0.81380614,60271.0,60270.0,0.52476]
[1723395446115,0.58152214,60271.0,60270.0,0.52476]
[1723395446281,0.58152214,60271.0,60270.0,1.03700692]
[1723395446282,0.00874968,60271.0,60270.0,1.03700692]
[1723395446486,0.00874968,60271.0,60270.0,1.02400692]
[1723395446684,0.001831,60271.0,60270.0,1.25629492]
[1723395446886,0.001831,60271.0,60270.0,1.24229492]
[1723395447288,0.001831,60271.0,60270.0,1.39406665]
[1723395447505,0.001831,60271.0,60270.0,1.14777975]
[1723395447825,0.082631,60271.0,60270.0,1.14777975]
[1723395448031,0.081631,60271.0,60270.0,1.15777975]
[1723395448163,0.081631,60271.0,60270.0,1.3800691]
[1723395448363,0.082631,60271.0,60270.0,1.3800691]
[1723395448579,0.082631,60271.0,60270.0,1.3920691]
[1723395448775,0.082631,60271.0,60270.0,1.38006788]
[1723395448973,0.081631,60271.0,60270.0,1.38006788]
[1723395449178,0.002831,60271.0,60270.0,1.38006788]
[1723395449378,0.002831,60271.0,60270.0,0.75167696]
[1723395449379,0.01074455,60271.0,60270.0,0.75167696]
[1723395449604,0.07664455,60271.0,60270.0,0.75167696]
[1723395449808,0.07464455,60271.0,60270.0,0.75167696]
[1723395450010,0.07664455,60271.0,60270.0,0.846192]
[1723395450208,0.07664455,60271.0,60270.0,0.99096956]
[1723395450771,0.07664455,60271.0,60270.0,0.98396956]
[1723395451173,0.15744455,60271.0,60270.0,0.63553756]
[1723395451374,0.15744455,60271.0,60270.0,0.63853756]
[1723395451610,0.15744455,60271.0,60270.0,0.50076]
[1723395452019,0.15544455,60271.0,60270.0,0.50076]
[1723395452431,0.15644455,60271.0,60270.0,0.50076]
[1723395453253,0.27258655,60271.0,60270.0,0.50076]
[1723395453702,0.50487055,60271.0,60270.0,0.50076]
[1723395454318,0.50487055,60271.0,60270.0,0.49776]
[1723395455098,0.50487055,60271.0,60270.0,0.50076]
[1723395455406,0.50387055,60271.0,60270.0,0.49776]
[1723395455574,0.50387055,60271.0,60270.0,0.50276]
[1723395455759,0.50487055,60271.0,60270.0,0.50276]
[1723395456382,0.50387055,60271.0,60270.0,0.50276]
[1723395456587,0.50487055,60271.0,60270.0,0.50276]
[1723395458136,0.27258655,60271.0,60270.0,0.50276]
[1723395458373,0.15644455,60271.0,60270.0,0.50276]
[1723395458518,0.27258655,60271.0,60270.0,0.50276]
[1723395461549,0.00974455,60271.0,60270.0,0.50276]
[1723395461748,0.12588655,60271.0,60270.0,0.50276]
[1723395462452,0.12588655,60271.0,60270.0,0.49776]
[1723395464231,0.12588655,60271.0,60270.0,0.50276]
[1723395464596,0.12588655,60271.0,60270.0,0.49776]
[1723395464922,0.12588655,60271.0,60270.0,0.50276]
[1723395467647,0.00974455,60271.0,60270.0,0.50276]
[1723395468086,0.00974455,60271.0,60270.0,1.27655092]
[1723395468300,0.00974455,60271.0,60270.0,1.53046801]
[1723395468490,0.001831,60271.0,60270.0,1.76275601]
[1723395468742,0.000831,60271.0,60270.0,1.76275601]
[1723395469145,0.001831,60271.0,60270.0,1.75775601]
[1723395469557,0.001831,60271.0,60270.0,1.80175601]
[1723395469558,0.000831,60271.0,60270.0,1.80175601]
[1723395469892,0.000831,60271.0,60270.0,1.97394902]
[1723395470092,0.000831,60271.0,60270.0,1.81193244]
[1723395470320,0.000831,60271.0,60270.0,2.04216207]
[1723395470696,0.000831,60271.0,60270.0,1.86995202]
[1723395470910,0.000831,60271.0,60270.0,2.27442991]
[1723395471110,0.000831,60271.0,60270.0,2.27642991]
[1723395471695,0.000831,60271.0,60270.0,2.28142991]
[1723395472226,0.000831,60271.0,60270.0,1.91344735]
[1723395472425,0.000831,60271.0,60270.0,2.28147764]
[1723395472652,0.000831,60271.0,60270.0,2.86294086]
[1723395472808,0.000831,60271.0,60270.0,3.11038652]
[1723395473009,0.49107874,60289.0,60288.0,0.580545]
[1723395473210,0.49107874,60289.0,60288.0,0.88211104]
[1723395473456,0.08184646,60294.0,60290.0,0.116104]
[1723395473659,0.08184646,60294.0,60292.0,0.116101]
[1723395474607,0.08184646,60294.0,60293.0,0.116099]
[1723395474807,0.08184646,60294.0,60292.0,0.1161]
[1723395475008,0.19794446,60294.0,60290.0,0.28591792]
[1723395475157,0.19794446,60294.0,60290.0,0.16381492]
[1723395475371,0.19794446,60294.0,60292.0,0.006]
[1723395475669,0.08184646,60294.0,60292.0,0.006]
[1723395480652,0.19794346,60294.0,60292.0,0.006]
[1723395480849,0.08184646,60294.0,60292.0,0.006]
[1723395481074,0.116099,60293.0,60292.0,0.006]
[1723395481278,0.08184646,60294.0,60292.0,0.006]
[1723395483693,0.08184646,60294.0,60292.0,0.122101]
[1723395484545,0.08184646,60294.0,60292.0,0.006]
[1723395488125,0.08267646,60294.0,60292.0,0.006]
[1723395488542,0.00083,60294.0,60293.0,0.74431192]
[1723395488836,0.00083,60294.0,60293.0,0.88203292]
[1723395489080,0.00083,60294.0,60293.0,0.74431192]
[1723395489320,0.00083,60294.0,60293.0,1.1142265]
[1723395489562,0.00083,60294.0,60293.0,1.1142257]
[1723395490055,0.00083,60294.0,60293.0,1.1905257]
[1723395490279,0.00083,60294.0,60293.0,1.2512257]
[1723395490507,0.00083,60294.0,60293.0,1.26133964]
[1723395490733,0.00083,60294.0,60293.0,1.26733964]
[1723395490984,0.00083,60294.0,60293.0,1.26133964]
[1723395491340,0.00083,60294.0,60293.0,1.54271064]
[1723395491549,0.00083,60294.0,60293.0,1.1633977]
[1723395492005,0.00083,60294.0,60293.0,1.02568292]
[1723395493424,0.00083,60294.0,60293.0,1.16340437]
[1723395493690,0.00083,60294.0,60293.0,1.02568292]
[1723395493911,0.00083,60294.0,60293.0,1.16340436]
[1723395495225,0.00083,60294.0,60293.0,1.39560336]
[1723395495558,0.00083,60294.0,60293.0,1.16340436]
[1723395496653,0.00083,60294.0,60293.0,1.02568292]